bitfinex/quotes_SOLUSD_20240717
["timestamp","ask_amount","ask_price","bid_price","bid_amount"]
[1721175553899,21.574,161.5,161.47,6.193]
[1721175554503,21.574,161.5,161.46,21.6763]
[1721175555493,27.7661,161.5,161.46,15.483]
[1721175555694,21.574,161.5,161.46,21.6764]
[1721175556629,21.574,161.5,161.47,6.193]
[1721175557525,21.574,161.5,161.46,21.6763]
[1721175557826,21.574,161.5,161.47,6.193]
[1721175558122,29.52,161.54,161.49,6.1923]
[1721175558123,22.2897,161.54,161.49,6.1923]
[1721175558327,22.2897,161.54,161.44,30.9701]
[1721175558328,22.2897,161.54,161.5,6.1916]
[1721175558795,22.2897,161.54,161.49,6.1922]
[1721175558997,22.2897,161.54,161.5,6.1918]
[1721175559227,22.2897,161.54,161.51,6.1915]
[1721175560216,22.2897,161.54,161.5,21.6713]
[1721175560401,22.2897,161.54,161.5,15.4795]
[1721175560595,28.4802,161.54,161.5,15.4795]
[1721175561014,6.4691,161.54,161.5,15.4795]
[1721175561210,30.3466379,161.57,161.5,16.71784544]
[1721175561423,0.34,161.56,161.52,6.191]
[1721175562203,0.8266379,161.57,161.52,6.191]
[1721175562400,20.8266379,161.57,161.52,6.191]
[1721175562593,27.0160379,161.57,161.52,6.191]
[1721175562824,6.1898,161.56,161.5,15.4795]
[1721175562999,6.1898,161.56,161.51,1.2381518]
[1721175563604,20.8266379,161.57,161.5,15.4795]
[1721175563903,6.1897,161.56,161.5,15.4795]
[1721175564218,0.8266379,161.57,161.51,1.23814867]
[1721175564413,0.8266379,161.57,161.52,1.2380132]
[1721175565106,0.8266379,161.57,161.54,21.6658]
[1721175566618,0.8266379,161.57,161.55,1.23795432]
[1721175567145,0.8266379,161.57,161.56,6.87339814]
[1721175567299,0.8266379,161.57,161.56,6.1896]
[1721175571433,0.8266379,161.57,161.56,37.1378]
[1721175572141,3.79e-05,161.57,161.56,37.1378]
[1721175572438,3.79e-05,161.57,161.56,55.18740699]
[1721175573150,15.7956,161.7,161.6,30.9398]
[1721175573434,15.7956,161.7,161.67,6.1851]
[1721175573637,15.7956,161.7,161.68,6.185]
[1721175574347,15.7956,161.7,161.66,15.464]
[1721175574348,15.7956,161.7,161.67,6.1853]
[1721175575820,15.7956,161.7,161.66,21.6497]
[1721175576024,15.7956,161.7,161.67,6.1854]
[1721175576428,15.7956,161.7,161.66,21.6497]
[1721175576627,15.7956,161.7,161.67,6.1853]
[1721175577042,15.7956,161.7,161.68,6.1849]
[1721175577622,15.7956,161.7,161.66,21.6496]
[1721175577941,15.7956,161.7,161.67,6.1853]
[1721175578628,15.7956,161.7,161.66,21.6497]
[1721175579039,15.7956,161.7,161.67,6.1854]
[1721175580707,15.7956,161.7,161.66,15.464]
[1721175581151,15.7956,161.7,161.68,6.185]
[1721175582233,15.7956,161.7,161.69,6.1846]
[1721175583221,15.7956,161.7,161.68,6.1849]
[1721175584251,15.7956,161.7,161.69,6.1846]
[1721175584763,6.2172,161.71,161.69,6.1845]
[1721175584924,6.2172,161.71,161.7,6.1842]
[1721175585131,0.8266379,161.73,161.72,6.1835]
[1721175586648,48.13,161.8,161.72,6.1835]
[1721175586649,0.8266379,161.89,161.78,6.1812]
[1721175586869,6.4576,161.83,161.77,15.4537]
[1721175587041,6.4576,161.83,161.76,6.1819]
[1721175587360,6.4576,161.83,161.72,30.9164]
[1721175587361,35.9776,161.83,161.77,6.1815]
[1721175587523,35.9776,161.83,161.77,15.454]
[1721175587828,29.52,161.8,161.68,2.86276419]
[1721175588029,29.52,161.8,161.68,30.9238]
[1721175588242,29.52,161.8,161.77,6.1814]
[1721175588435,29.52,161.8,161.75,6.182]
[1721175588665,0.34,161.78,161.74,15.4563]
[1721175588867,29.52,161.8,161.74,15.4563]
[1721175589061,29.69,161.8,161.77,6.1815]
[1721175589264,29.86,161.8,161.74,15.4563]
[1721175589484,0.34,161.78,161.74,15.4563]
[1721175589879,0.34,161.78,161.72,6.1832]
[1721175590067,0.17,161.77,161.73,6.1831]
[1721175590289,26.5208,161.79,161.71,15.4594]
[1721175590583,26.5212,161.79,161.72,6.1833]
[1721175590788,26.5212,161.79,161.71,15.4594]
[1721175590989,20.34,161.79,161.75,6.1823]
[1721175591291,0.34,161.79,161.73,15.457]
[1721175591462,36.0409,161.79,161.73,15.457]
[1721175591782,36.0409,161.79,161.73,21.64]
[1721175591988,36.0409,161.79,161.73,15.457]
[1721175591989,29.86,161.79,161.73,15.457]
[1721175592187,29.86,161.79,161.75,6.1822]
[1721175592478,29.86,161.79,161.73,15.457]
[1721175592479,0.34,161.79,161.76,6.1818]
[1721175593060,0.34,161.79,161.73,15.457]
[1721175593061,0.34,161.79,161.75,6.1823]
[1721175593783,6.5209,161.79,161.73,21.6399]
[1721175594383,0.34,161.79,161.73,15.457]
[1721175594565,0.34,161.79,161.74,6.1826]
[1721175594878,6.5208,161.79,161.74,6.1826]
[1721175595058,6.5208,161.79,161.73,21.64]
[1721175595479,16.0644,161.78,161.71,6.1835]
[1721175595786,0.34,161.77,161.72,6.1833]
[1721175595990,0.34,161.77,161.73,6.183]
[1721175596589,0.34,161.77,161.72,21.6418]
[1721175596792,0.34,161.77,161.72,15.4583]
[1721175596960,0.34,161.77,161.74,6.1827]
[1721175597292,6.0292,161.76,161.72,15.4583]
[1721175597475,0.34,161.75,161.72,15.4583]
[1721175598696,0.34,161.75,161.72,21.6417]
[1721175598992,0.34,161.75,161.71,6.1838]
[1721175599402,6.186,161.66,161.51,10.0]
[1721175599561,21.3801,161.69,161.51,10.0]
[1721175599562,29.69,161.65,161.51,10.0]
[1721175599894,29.69,161.68,161.55,10.0]
[1721175600070,20.17,161.67,161.55,10.0]
[1721175600598,20.17,161.67,161.61,6.1876]
[1721175600764,20.17,161.67,161.6,21.658]
[1721175600765,6.3558,161.66,161.6,21.658]
[1721175601098,0.17,161.66,161.62,6.1873]
[1721175601277,26.3554,161.67,161.62,6.1873]
[1721175601479,20.17,161.67,161.63,6.1869]
[1721175601664,6.1862,161.65,161.6,21.6579]
[1721175601865,6.1862,161.65,161.6,15.4699]
[1721175602274,6.1862,161.65,161.6,21.6579]
[1721175602698,6.1859,161.66,161.6,21.6579]
[1721175603085,20.17,161.67,161.6,21.6579]
[1721175603391,5.1858,161.66,161.6,21.6579]
[1721175604400,6.1862,161.65,161.6,21.6579]
[1721175604771,6.1859,161.66,161.6,21.6579]
[1721175604967,6.1859,161.66,161.6,15.4699]
[1721175605675,6.187,161.63,161.56,15.4731]
[1721175606096,6.187,161.63,161.57,6.1892]
[1721175606304,6.187,161.63,161.56,15.4731]
[1721175606305,0.34,161.64,161.56,15.4731]
[1721175606609,20.34,161.64,161.56,15.4731]
[1721175606794,6.1873,161.62,161.56,21.6624]
[1721175607190,6.187,161.63,161.57,6.1892]
[1721175607799,6.1875,161.62,161.57,6.1892]
[1721175608200,6.187,161.63,161.58,6.1887]
[1721175608377,20.34,161.64,161.6,6.188]
[1721175608571,20.0,161.64,161.6,6.188]
[1721175608882,20.0,161.64,161.59,6.1884]
[1721175609103,20.0,161.64,161.58,21.6604]
[1721175609277,0.34,161.63,161.58,21.6604]
[1721175609787,6.5272,161.63,161.58,15.4716]
[1721175609978,20.0,161.64,161.58,21.6604]
[1721175610187,26.1867,161.64,161.59,6.1884]
[1721175610601,6.1871,161.63,161.58,15.4716]
[1721175611301,26.1866,161.64,161.58,15.4716]
[1721175611500,20.0,161.64,161.58,15.4716]
[1721175611683,6.1866,161.64,161.58,15.4716]
[1721175612113,6.1866,161.64,161.58,21.6603]
[1721175612487,36.0463,161.65,161.59,6.1882]
[1721175612810,6.1866,161.64,161.59,6.1882]
[1721175613179,6.1866,161.64,161.58,15.4716]
[1721175613381,29.52,161.65,161.58,15.4716]
[1721175613591,6.1865,161.64,161.58,21.6601]
[1721175614309,6.1869,161.63,161.58,21.6601]
[1721175614617,6.1875,161.62,161.55,15.4745]
[1721175614797,6.187,161.63,161.57,6.1889]
[1721175615002,6.187,161.63,161.55,15.4745]
[1721175615511,29.52,161.65,161.57,6.1892]
[1721175615808,6.1874,161.62,161.57,6.1892]
[1721175616421,6.1881,161.6,161.55,21.6644]
[1721175616906,6.1976,161.61,161.54,6.1903]
[1721175617124,6.1976,161.61,161.55,6.1897]
[1721175617605,21.2863,161.6,161.55,6.1897]
[1721175617811,6.1886,161.59,161.54,21.6656]
[1721175618512,0.17,161.58,161.51,21.6696]
[1721175618688,0.34,161.58,161.51,21.6696]
[1721175619024,6.1893,161.57,161.51,21.6696]
[1721175619948,6.3598,161.56,161.51,15.4784]
[1721175620092,6.1901,161.55,161.49,6.1922]
[1721175620491,6.1901,161.55,161.5,6.1919]
[1721175620886,6.2375,161.53,161.48,15.4817]
[1721175621088,12.4285,161.53,161.48,15.4817]
[1721175621289,6.1911,161.52,161.48,15.4817]
[1721175621489,41.9484,161.53,161.48,15.4817]
[1721175621918,35.7575,161.53,161.48,15.4817]
[1721175622123,35.7575,161.53,161.48,21.6742]
[1721175622296,35.7575,161.53,161.49,6.1921]
[1721175623412,6.2375,161.53,161.49,6.1921]
[1721175623613,6.2375,161.53,161.5,6.1918]
[1721175623819,6.2375,161.53,161.49,6.1923]
[1721175625626,6.5305,161.54,161.51,6.1914]
[1721175625627,0.34,161.54,161.51,6.1914]
[1721175625813,29.52,161.56,161.51,6.1914]
[1721175626540,6.3459,161.57,161.52,7.42918521]
[1721175626718,6.3459,161.57,161.52,6.191]
[1721175627433,6.3459,161.57,161.54,6.1903]
[1721175627635,12.5352,161.57,161.52,21.6685]
[1721175627838,6.3459,161.57,161.52,15.4774]
[1721175628127,6.3459,161.57,161.53,6.1907]
[1721175628335,12.5352,161.57,161.52,15.4774]
[1721175628537,12.5352,161.57,161.52,21.6684]
[1721175629420,6.3459,161.57,161.54,6.1904]
[1721175629806,6.3459,161.57,161.52,15.4774]
[1721175630009,12.5352,161.57,161.52,15.4774]
[1721175631306,6.1901,161.55,161.5,6.1918]
[1721175631629,6.1905,161.54,161.49,15.4805]
[1721175631807,6.1905,161.54,161.49,21.6725]
[1721175632714,6.19,161.55,161.5,6.1919]
[1721175632917,0.34,161.56,161.49,21.6728]
[1721175633117,20.34,161.56,161.49,21.6728]
[1721175633323,20.34,161.56,161.5,6.1918]
[1721175633613,6.1902,161.55,161.5,6.1918]
[1721175633824,6.5307,161.54,161.49,21.6727]
[1721175634028,0.17,161.53,161.49,21.6727]
[1721175634619,0.17,161.53,161.47,6.1927]
[1721175634925,6.361,161.53,161.48,6.1926]
[1721175635826,6.3605,161.54,161.49,6.1922]
[1721175636455,6.1908,161.53,161.48,21.6741]
[1721175636663,6.1912,161.52,161.48,15.4815]
[1721175637014,6.3608,161.53,161.48,21.6742]
[1721175640355,14.74,161.5,161.48,21.6742]
[1721175642249,6.1908,161.53,161.48,21.6742]
[1721175642423,14.74,161.5,161.48,21.6742]
[1721175643322,0.17,161.54,161.45,15.4841]
[1721175643629,14.74,161.48,161.46,1.23847989]
[1721175643834,6.1912,161.52,161.46,1.23847989]
[1721175644024,14.74,161.49,161.47,6.1928]
[1721175645435,6.5309,161.53,161.47,6.1928]
[1721175645436,14.74,161.48,161.47,6.1928]
[1721175646339,14.74,161.49,161.47,6.1928]
[1721175646544,14.74,161.48,161.46,1.23847989]
[1721175647234,14.74,161.48,161.46,6.1932]
[1721175647743,14.74,161.48,161.47,6.1931]
[1721175647948,14.74,161.48,161.45,15.4841]
[1721175648128,6.1916,161.51,161.45,15.4841]
[1721175648448,14.74,161.52,161.47,6.1928]
[1721175648650,22.8963,161.53,161.48,6.1925]
[1721175648948,16.7052,161.53,161.5,6.1919]
[1721175649138,14.74,161.51,161.49,6.192]
[1721175649343,16.3652,161.53,161.48,6.1926]
[1721175649532,0.17,161.52,161.48,6.1926]
[1721175649733,14.74,161.49,161.48,6.1926]
[1721175650047,14.74,161.49,161.47,21.675]
[1721175650735,14.74,161.49,161.48,6.1927]
[1721175651055,14.74,161.49,161.47,21.6749]
[1721175651647,14.74,161.48,161.47,21.6749]
[1721175652343,14.74,161.49,161.48,6.1924]
[1721175653828,16.3652,161.53,161.49,6.1919]
[1721175654032,14.74,161.5,161.49,6.1923]
[1721175655346,16.3652,161.53,161.5,6.1918]
[1721175655549,14.74,161.51,161.5,6.1918]
[1721175656349,16.3652,161.53,161.5,6.1918]
[1721175656553,14.74,161.51,161.5,6.1918]
[1721175657262,14.74,161.51,161.49,15.4804]
[1721175657490,14.74,161.5,161.49,15.4804]
[1721175657640,14.74,161.5,161.49,21.6727]
[1721175657841,16.3652,161.53,161.49,21.6727]
[1721175658049,14.74,161.5,161.49,21.6727]
[1721175658673,14.74,161.5,161.49,15.4804]
[1721175659240,16.3652,161.53,161.51,15.478]
[1721175659458,14.74,161.52,161.45,14.74]
[1721175659759,14.74,161.5,161.45,14.74]
[1721175659948,14.74,161.5,161.48,21.6737]
[1721175660254,20.0,161.56,161.48,15.4811]
[1721175660457,14.74,161.51,161.5,6.1918]
[1721175660761,28.604,161.57,161.52,6.1911]
[1721175661056,14.74,161.53,161.52,6.1911]
[1721175661236,28.604,161.57,161.52,6.1911]
[1721175661560,14.74,161.53,161.52,6.1911]
[1721175661750,14.74,161.53,161.51,21.6702]
[1721175662457,14.74,161.52,161.51,21.6702]
[1721175664273,14.74,161.52,161.51,15.4788]
[1721175664479,14.74,161.52,161.49,6.192]
[1721175664672,14.74,161.51,161.5,6.1919]
[1721175666285,14.74,161.53,161.52,6.191]
[1721175667575,14.74,161.53,161.51,7.42968369]
[1721175667778,14.74,161.52,161.5,21.6709]
[1721175667985,14.74,161.52,161.51,6.1915]
[1721175668287,14.74,161.52,161.5,21.6708]
[1721175669392,14.74,161.51,161.5,21.6708]
[1721175670275,14.74,161.51,161.5,15.479]
[1721175670474,14.74,161.51,161.43,16.45400187]
[1721175670475,14.74,161.51,161.48,6.1926]
[1721175670685,14.74,161.49,161.48,6.1926]
[1721175671078,14.74,161.5,161.49,6.192]
[1721175672601,6.1896,161.56,161.51,6.1913]
[1721175672895,22.2447,161.57,161.54,6.1901]
[1721175673195,14.74,161.55,161.54,6.1901]
[1721175673690,14.74,161.55,161.53,15.4762]
[1721175674590,14.74,161.55,161.53,21.6669]
[1721175674801,14.74,161.55,161.54,6.1904]
[1721175675511,14.74,161.55,161.5,15.4797]
[1721175675683,14.74,161.53,161.5,15.4797]
[1721175675873,14.74,161.52,161.5,15.4797]
[1721175676376,14.74,161.52,161.5,21.6716]
[1721175676578,14.74,161.52,161.5,15.4797]
[1721175676911,14.74,161.51,161.49,6.1921]
[1721175677088,14.74,161.5,161.48,7.43084099]
[1721175677266,14.74,161.49,161.48,6.1925]
[1721175677680,14.74,161.51,161.49,15.4802]
[1721175678096,14.74,161.51,161.49,21.6724]
[1721175678301,14.74,161.5,161.49,21.6724]
[1721175678473,14.74,161.5,161.49,15.4802]
[1721175679491,14.74,161.5,161.49,21.6725]
[1721175681296,14.74,161.5,161.48,6.1925]
[1721175681595,14.74,161.49,161.48,6.1925]
[1721175682177,14.74,161.49,161.46,16.71393793]
[1721175682376,14.74,161.49,161.48,6.1927]
[1721175684211,22.2447,161.57,161.49,6.1922]
[1721175684499,14.74,161.5,161.49,6.1922]
[1721175684706,14.74,161.5,161.46,16.71393793]
[1721175684707,14.74,161.5,161.46,15.4833]
[1721175684879,14.74,161.49,161.48,6.1926]
[1721175690809,14.74,161.5,161.49,21.6725]
[1721175690985,22.2447,161.57,161.52,6.1908]
[1721175691184,14.74,161.53,161.51,21.6696]
[1721175691384,14.74,161.52,161.51,15.4781]
[1721175691613,14.74,161.52,161.49,6.1922]
[1721175691775,6.1901,161.55,161.5,6.1919]
[1721175691980,14.74,161.51,161.5,6.1919]
[1721175692282,14.74,161.51,161.48,21.6741]
[1721175692590,14.74,161.49,161.48,21.6741]
[1721175693402,6.1899,161.56,161.5,6.1919]
[1721175693602,20.34,161.55,161.51,6.1913]
[1721175693905,14.74,161.52,161.51,6.1913]
[1721175694293,14.74,161.53,161.5,6.1918]
[1721175694499,14.74,161.51,161.49,15.4806]
[1721175695509,14.74,161.51,161.5,6.1919]
[1721175696402,14.74,161.51,161.49,15.4806]
[1721175698490,14.74,161.51,161.5,6.1919]
[1721175699005,14.74,161.51,161.49,21.6728]
[1721175699189,14.74,161.5,161.49,21.6728]
[1721175700211,14.74,161.51,161.5,6.1919]
[1721175702695,14.74,161.52,161.5,6.1919]
[1721175703008,14.74,161.54,161.53,6.1905]
[1721175703212,14.74,161.55,161.54,6.1902]
[1721175703912,22.2447,161.57,161.55,6.19]
[1721175704207,14.74,161.56,161.55,6.19]
[1721175705000,44.22,161.6,161.55,6.19]
[1721175705207,22.2949,161.61,161.57,6.1889]
[1721175705400,14.74,161.58,161.57,6.1889]
[1721175705602,14.74,161.58,161.56,21.6634]
[1721175706320,14.74,161.58,161.56,15.4739]
[1721175707406,14.74,161.57,161.52,15.4771]
[1721175707611,6.1889,161.58,161.52,15.4771]
[1721175707818,14.74,161.53,161.52,21.6679]
[1721175708013,14.74,161.53,161.5,6.1918]
[1721175708219,14.74,161.51,161.5,6.1918]
[1721175708524,14.74,161.51,161.49,21.6727]
[1721175709017,14.74,161.51,161.5,6.1919]
[1721175711022,14.74,161.51,161.49,21.6727]
[1721175711226,14.74,161.5,161.49,21.6727]
[1721175713413,14.74,161.51,161.5,6.1919]
[1721175714709,22.4128,161.55,161.52,6.191]
[1721175715029,14.74,161.53,161.51,21.6698]
[1721175715222,14.74,161.52,161.51,21.6698]
[1721175716346,14.74,161.52,161.48,15.4813]
[1721175716504,22.4128,161.55,161.48,15.4813]
[1721175716708,22.4128,161.55,161.5,21.6712]
[1721175716911,14.74,161.51,161.5,21.6712]
[1721175717623,14.74,161.51,161.5,15.4794]
[1721175717821,22.4128,161.55,161.5,15.4794]
[1721175718012,14.74,161.51,161.5,15.4794]
[1721175718207,22.4128,161.55,161.5,15.4794]
[1721175718419,14.74,161.51,161.5,21.6713]
[1721175719729,22.4128,161.55,161.51,6.1915]
[1721175719914,14.74,161.52,161.51,6.1915]
[1721175722203,14.74,161.52,161.46,15.4831]
[1721175722411,14.74,161.47,161.46,21.6765]
[1721175722908,6.5311,161.53,161.48,6.1925]
[1721175723117,14.74,161.49,161.48,6.1925]
[1721175723504,14.74,161.49,161.46,15.4831]
[1721175723700,14.74,161.47,161.46,21.6763]
[1721175723928,0.34,161.53,161.46,15.4831]
[1721175724115,14.74,161.48,161.47,6.1927]
[1721175724312,14.74,161.48,161.46,21.6765]
[1721175724515,14.74,161.47,161.46,21.6765]
[1721175727917,6.1908,161.53,161.49,6.1922]
[1721175728120,14.74,161.5,161.49,6.1922]
[1721175728317,6.1908,161.53,161.48,6.1926]
[1721175728513,14.74,161.49,161.48,6.1926]
[1721175728915,6.5305,161.54,161.49,6.1921]
[1721175729134,14.74,161.5,161.49,6.1921]
[1721175731040,27.6881,161.59,161.49,1.23837185]
[1721175731223,14.74,161.54,161.53,21.6678]
[1721175731723,6.1889,161.58,161.53,21.6678]
[1721175731923,21.4996,161.59,161.49,14.74]
[1721175731924,21.4996,161.59,161.56,6.1893]
[1721175732441,14.74,161.57,161.55,21.6642]
[1721175732619,14.74,161.56,161.55,15.4743]
[1721175733838,14.74,161.56,161.55,21.6643]
[1721175736633,6.2167,161.59,161.56,6.1895]
[1721175736937,14.74,161.57,161.56,6.1895]
[1721175737126,22.1082,161.63,161.55,15.4743]
[1721175737325,14.74,161.58,161.57,6.1892]
[1721175737620,14.74,161.58,161.56,6.1895]
[1721175737826,14.74,161.57,161.55,21.6642]
[1721175738024,14.74,161.56,161.54,6.1902]
[1721175738223,14.74,161.55,161.54,6.1902]
[1721175739538,14.74,161.56,161.55,6.1899]
[1721175740236,14.74,161.57,161.55,6.1899]
[1721175740536,6.1878,161.61,161.56,6.1896]
[1721175740725,14.74,161.57,161.56,6.1896]
[1721175740925,14.74,161.57,161.54,15.4756]
[1721175741339,14.74,161.57,161.55,6.1897]
[1721175741537,14.74,161.57,161.54,15.4756]
[1721175741538,20.34,161.62,161.54,15.4756]
[1721175741717,26.5276,161.62,161.57,6.1891]
[1721175741919,14.74,161.58,161.54,15.4756]
[1721175742230,14.74,161.57,161.54,15.4756]
[1721175742415,14.74,161.57,161.54,21.6657]
[1721175742823,14.74,161.56,161.55,6.1898]
[1721175743220,6.1878,161.61,161.56,6.1896]
[1721175743527,14.74,161.57,161.56,6.1896]
[1721175743726,22.1082,161.63,161.55,15.97786143]
[1721175744035,22.1082,161.63,161.54,15.4874]
[1721175744036,14.74,161.62,161.61,6.1877]
[1721175744837,14.74,161.62,161.6,6.188]
[1721175745043,14.74,161.62,161.59,15.4704]
[1721175745339,14.74,161.61,161.59,21.6588]
[1721175746516,6.1867,161.64,161.59,21.6588]
[1721175746517,14.74,161.6,161.59,21.6588]
[1721175749057,14.74,161.6,161.56,15.4738]
[1721175749349,14.74,161.58,161.57,6.1889]
[1721175750519,14.74,161.58,161.56,21.6633]
[1721175750743,6.1878,161.61,161.56,21.6633]
[1721175750744,14.74,161.57,161.56,21.6633]
[1721175751129,14.74,161.58,161.57,6.1892]
[1721175752025,14.74,161.6,161.59,6.1882]
[1721175752424,21.2253,161.67,161.61,6.1876]
[1721175752425,6.1859,161.66,161.61,6.1876]
[1721175752730,14.74,161.62,161.61,6.1876]
[1721175754850,14.74,161.62,161.6,15.4698]
[1721175755222,14.74,161.62,161.61,6.1877]
[1721175755944,21.2253,161.67,161.61,6.1877]
[1721175756147,20.34,161.66,161.62,6.187]
[1721175756347,14.74,161.64,161.63,6.1869]
[1721175756826,14.74,161.65,161.63,6.1869]
[1721175757335,14.74,161.65,161.62,21.6549]
[1721175758145,14.74,161.64,161.62,21.6549]
[1721175759834,27.4108,161.67,161.62,21.6549]
[1721175760249,14.74,161.64,161.62,21.6549]
[1721175761840,14.74,161.64,161.62,15.4677]
[1721175762143,21.2253,161.67,161.62,15.4677]
[1721175762352,14.74,161.66,161.62,15.4677]
[1721175762538,12.5249,161.71,161.65,6.1862]
[1721175762735,14.74,161.67,161.65,6.1862]
[1721175763250,14.74,161.67,161.64,21.6525]
[1721175763546,14.74,161.66,161.64,15.466]
[1721175763757,14.74,161.67,161.66,6.1858]
[1721175764246,14.74,161.67,161.65,6.186]
[1721175764455,14.74,161.66,161.65,6.186]
[1721175764950,14.74,161.67,161.65,6.186]
[1721175765339,6.1844,161.7,161.65,6.186]
[1721175765541,14.74,161.67,161.65,6.186]
[1721175767255,14.74,161.67,161.64,21.6524]
[1721175767438,14.74,161.66,161.64,21.6524]
[1721175768041,14.74,161.66,161.65,6.1862]
[1721175768357,6.1847,161.69,161.64,21.6525]
[1721175768542,14.74,161.66,161.64,21.6525]
[1721175769454,14.74,161.65,161.64,15.466]
[1721175769752,14.74,161.65,161.62,6.1869]
[1721175769937,14.74,161.64,161.62,6.1869]
[1721175770344,14.74,161.63,161.62,6.1869]
[1721175770550,14.74,161.64,161.63,6.1868]
[1721175771337,14.74,161.65,161.63,6.1868]
[1721175771549,14.74,161.65,161.64,6.1865]
[1721175773456,6.1853,161.68,161.63,15.4671]
[1721175773635,14.74,161.65,161.63,15.4671]
[1721175773842,0.34,161.67,161.63,21.654]
[1721175774051,0.34,161.67,161.63,15.4671]
[1721175774236,14.74,161.64,161.57,31.4005]
[1721175774438,14.74,161.63,161.62,6.1873]
[1721175775457,14.74,161.63,161.62,21.6551]
[1721175776661,14.74,161.63,161.62,15.4678]
[1721175778149,14.74,161.63,161.62,21.6551]
[1721175778748,14.74,161.64,161.63,6.1865]
[1721175779341,14.74,161.65,161.64,6.1862]
[1721175779541,0.34,161.67,161.65,6.1862]
[1721175779782,14.74,161.66,161.64,6.1864]
[1721175779960,14.74,161.65,161.64,6.1864]
[1721175780260,14.74,161.65,161.63,6.1868]
[1721175780766,14.74,161.65,161.64,6.1865]
[1721175781176,14.74,161.65,161.63,6.1868]
[1721175781876,14.74,161.65,161.64,6.1865]
[1721175782056,14.74,161.65,161.63,6.1868]
[1721175783449,14.74,161.64,161.61,6.1874]
[1721175783643,15.08,161.68,161.61,6.1874]
[1721175783848,14.74,161.62,161.61,6.1874]
[1721175784560,14.74,161.64,161.61,15.4685]
[1721175784742,14.74,161.64,161.63,6.1869]
[1721175785673,14.74,161.64,161.62,6.1872]
[1721175785887,14.74,161.64,161.63,6.1869]
[1721175789268,14.74,161.64,161.62,6.1873]
[1721175789472,14.74,161.64,161.63,6.1869]
[1721175790966,58.96,161.68,161.64,6.1864]
[1721175791171,14.74,161.66,161.63,15.467]
[1721175791365,14.74,161.67,161.65,6.1861]
[1721175792375,14.74,161.68,161.66,21.6502]
[1721175792754,14.74,161.67,161.66,21.6502]
[1721175795355,21.3539,161.77,161.7,15.4598]
[1721175795578,14.74,161.72,161.7,21.644]
[1721175795983,14.74,161.72,161.7,15.4598]
[1721175796464,14.74,161.71,161.7,15.4598]
[1721175797077,14.74,161.71,161.67,21.6486]
[1721175797371,14.74,161.7,161.67,21.6486]
[1721175797976,14.74,161.69,161.67,21.6486]
[1721175798364,14.74,161.68,161.67,15.4632]
[1721175799190,14.74,161.68,161.67,21.6486]
[1721175799476,6.1827,161.75,161.7,6.1841]
[1721175799773,14.74,161.71,161.7,6.1841]